Cogmind - Beta 13 @@@ ROGUE MODE // 2024.04.19 @ 20:25:07 Player: Powerlich_soros Result: Self-destructed Performance ------------- Evolutions (1) 500 Regions Visited (2) 400 Robots Destroyed (47) 235 Value Destroyed (921) 921 Prototype IDs (4) 80 Alien Tech Used (0) 0 Bonus (0) 0 TOTAL SCORE: 2136 Bonus ------- None Cogmind --------- Core Integrity 220/400 Matter 236/300 Energy 6/250 System Corruption 1% Temperature Cool (27) Movement Core (100) Ox1 Location -9/Materials Parts ------- > --- POWER (1) -------- Ion Engine > --- PROPULSION (2) --- Improved Flight Unit > --- UTILITY (4) ------ Small Storage Unit Weight Redist. System > --- WEAPON (2) ------- (None) > --- INVENTORY (8) ---- Flight Unit Flight Unit Improved Flight Unit Rocket Launcher Heavy Hammer Peak State ------------ > --- POWER ------------ Light Nuclear Core > --- PROPULSION ------- Improved Flight Unit Improved Flight Unit > --- UTILITY ---------- Small Storage Unit Weight Redist. System Improved Targeting Computer > --- WEAPON ----------- Light EM Pulse Cannon > --- INVENTORY -------- Flight Unit Flight Unit Improved Flight Unit Improved Flight Unit EM Pulse Gun EM Shotgun Rocket Launcher Maul [Rating: 17] Favorites ----------- Power Light Ion Engine Engine Light Ion Engine Power Core Light Nuclear Core Propulsion Improved Flight Unit Wheel Compact Wheel Hover Unit Improved Hover Unit Flight Unit Improved Flight Unit Utility Small Storage Unit Device Weight Redist. System Storage Small Storage Unit Processor Improved Targeting Computer Weapon EM Pulse Gun Energy Gun EM Pulse Gun Energy Cannon Light EM Pulse Cannon Ballistic Gun Light Assault Rifle Launcher Rocket Launcher Build | -11 -10 -9 ------- Run | Yrd Mat Mat Slots Evolved 2 | . . 2 Power . | . . . Propulsion . | . . . Utility 2 | . . 2 Weapon . | . . . Parts Attached 60 | 7 25 28 Power 12 | 1 2 9 Engine 9 | 1 2 6 Core 3 | . . 3 Reactor . | . . . Propulsion 14 | 2 9 3 Treads . | . . . Leg . | . . . Wheel 4 | 2 2 . Hover 5 | . 5 . Flight 5 | . 2 3 Utility 5 | 1 3 1 Device 3 | . 3 . Storage 1 | 1 . . Processor 1 | . . 1 Hackware . | . . . Protection . | . . . Artifact . | . . . Weapon 29 | 3 11 15 Energy Gun 22 | 2 10 10 Energy Cannon 4 | . . 4 Ballistic Gun 2 | 1 1 . Ballistic Cannon . | . . . Launcher 1 | . . 1 Special Weapon . | . . . Impact Weapon . | . . . Slashing Weapon . | . . . Piercing Weapon . | . . . Special Melee Weapon . | . . . Unidentified Prototypes 4 | . 1 3 Corrupted Parts 2 | . 1 1 System Corruption 2 | . 1 1 Parts Lost 20 | . 7 13 Power 6 | . 1 5 Propulsion 6 | . 4 2 Utility . | . . . Weapon 8 | . 2 6 Highest Loss Streak 7 | . 4 7 To Critical Strikes . | . . . Average Slot Usage (%) 81 | . 90 70 Engine 10 | . 14 6 Core 1 | . . 3 Wheel 7 | . 14 . Hover 4 | . 9 . Flight 11 | . 2 21 Device 10 | . 9 11 Storage 12 | . 14 11 Energy Gun 15 | . 18 12 Energy Cannon 1 | . . 4 Ballistic Gun 3 | . 6 . Naked Turns . | . . . Heaviest Build 15 | 12 14 15 Greatest Support 38 | 32 38 16 Greatest Overweight (x) 4 | . 4 1 Average Overweight (x) . | . . . Largest Inventory Capacity 8 | 8 8 8 Average Capacity 7 | 7 8 8 Most Carried 8 | 2 8 8 Average Carried 5 | 1 4 7 Final Capacity 8 | 8 8 8 Final Carried 5 | 2 5 5 Class Distribution -------------------- 88% | Mutant 11% | Scavenger-Mutant Dominant Class ---------------- Mutant | -10/Materials Mutant | -9/Materials Resources | -11 -10 -9 ----------- Run | Yrd Mat Mat Matter Collected 716 | 265 241 210 Remotely . | . . . Salvage Created 1470 | . 642 828 Parts 110 | . 42 68 Haulers Intercepted 3 | . 2 1 Recyclers Shooed . | . . . Parts Field Recycled . | . . . Retrieved Matter . | . . . Parts Self-Destructed . | . . . Prevented . | . . . Kills | -11 -10 -9 ------- Run | Yrd Mat Mat Combat Hostiles Destroyed 27 | . 8 19 Guns 15 | . 8 7 Cannons 5 | . . 5 AOE 5 | . . 5 Classes Destroyed 10 | . 6 4 Worker 5 | . 2 3 Builder 1 | . . 1 Tunneler 2 | . . 2 Hauler 3 | . 2 1 Recycler 1 | . 1 . Operator 2 | . 1 1 Watcher 6 | . 2 4 Swarmer 11 | . . 11 Grunt 12 | . 8 4 Sentry 4 | . . 4 Best Kill Streak 9 | . 5 9 Combat Bots Only 4 | . 3 4 Max Kills in Single Turn 4 | . 1 4 Gunslinging . | . . . Exploded 2 | . . 2 Melee . | . . . Uniques/NPCs Destroyed . | . . . Combat | -11 -10 -9 -------- Run | Yrd Mat Mat Hostile Shots Fired 156 | . 57 99 Missed 48 | . 15 33 Damage Taken 1532 | . 666 866 Core 319 | . 139 180 Absorbed by Shields . | . . . Core Remaining (%) 72 | 100 44 . Volleys Fired 127 | . 59 68 Largest 2 | . 2 2 Hottest 105 | . 105 101 Shots Fired 168 | . 75 93 Gun 147 | . 75 72 Cannon 17 | . . 17 Launcher 4 | . . 4 Special . | . . . Kinetic 11 | . 11 . Thermal 27 | . 27 . Explosive 4 | . . 4 Electromagnetic 126 | . 37 89 Robot Hit Streak 11 | . 11 10 Robot Miss Streak 4 | . 3 4 Penetration Max . | . . . Secondary Targets . | . . . Shots Hit Robots 114 | . 52 62 Core Hits 59 | . 28 31 Critical Kills . | . . . Critical Parts Destroyed . | . . . Critical Strikes 3 | . 1 2 Burn 1 | . 1 . Corrupt 2 | . . 2 Melee Attacks . | . . . Impact . | . . . Slashing . | . . . Piercing . | . . . Sneak Attacks . | . . . Combat Hostiles . | . . . Follow-up Attacks . | . . . Damage Inflicted 2493 | . 805 1688 Guns 1449 | . 682 767 Cannons 343 | . . 343 Explosions 701 | . 123 578 Melee . | . . . Ramming . | . . . Kinetic 66 | . 66 . Thermal 573 | . 351 222 Explosive 356 | . . 356 Electromagnetic 1498 | . 388 1110 Impact . | . . . Slashing . | . . . Piercing . | . . . Highest Corruption 1 | . 1 1 Average Corruption 1 | . 1 1 Corruption Purged . | . . . Corruption Blocked . | . . . Effects 1 | . 1 . Matter Fused 1 | . 1 . Overload Shots . | . . . Overflow Damage 80 | . 18 62 Projectiles 36 | . . 36 Explosions 44 | . 18 26 Melee . | . . . Knockbacks . | . . . Impact . | . . . Kinetic . | . . . Secondary . | . . . Self-Inflicted Damage 162 | . 49 113 Shots 5 | . 2 3 Rammed . | . . . Targets Rammed . | . . . Kicked . | . . . Crushed . | . . . Highest Temperature 353 | . 353 148 Average Temperature 71 | . 130 46 Received Heat Transfer 627 | . 405 222 Effects 4 | . 4 . Interference 2 | . 2 . Short Circuit 1 | . 1 . Damage (minor) 1 | . 1 . Siege Activations . | . . . Robots Corrupted 2 | . . 2 Combat Hostiles 2 | . . 2 Parts Fried 8 | . 1 7 Impact Corruptions . | . . . Robots Melted . | . . . Combat Hostiles . | . . . Parts Melted . | . . . Heat Transferred 1031 | . 781 250 Parts Sabotaged . | . . . Parts Stolen . | . . . Parts Stripped . | . . . Power Chain Reactions 8 | . 3 5 Alert | -11 -10 -9 ------- Run | Yrd Mat Mat Peak Influence 381 | . 231 381 Initial 33 | . . 33 Average 139 | . 91 208 Maximum Alert Level 1 | . 1 1 Low Security (%) 69 | 100 91 40 Level 1 30 | . 8 59 Level 2 . | . . . Level 3 . | . . . Level 4 . | . . . Level 5 . | . . . High Security . | . . . Max Security . | . . . Squads Dispatched 1 | . . 1 Investigation 1 | . . 1 Extermination . | . . . Reinforcement . | . . . Assault . | . . . Garrison . | . . . Intercept . | . . . Searches Triggered . | . . . Construction Impeded . | . . . Haulers Reinforced . | . . . Active Scanning Responses . | . . . Cargo Convoy Interrupts . | . . . Stealth | -11 -10 -9 --------- Run | Yrd Mat Mat Distress Signals 2 | . 2 . Communications Jammed . | . . . Distress Signals . | . . . Times Spotted 44 | . 17 27 Peak Tracking Total 4 | . 4 4 Tactical Retreats 1 | . . 1 Traps | -11 -10 -9 ------- Run | Yrd Mat Mat Traps Triggered 3 | . . 3 Indirectly . | . . . Trap Hack Attempts . | . . . Triggered . | . . . Disarmed . | . . . Reprogrammed . | . . . Reused . | . . . Traps Extracted . | . . . Installed . | . . . Triggered . | . . . Machines | -11 -10 -9 ---------- Run | Yrd Mat Mat Machines Disabled 2 | . . 2 Max in Single Turn 1 | . . 1 Machines Repaired . | . . . Machines Dismantled . | . . . Machines Sabotaged . | . . . Overloaded Fab Kills . | . . . Hacking | -11 -10 -9 --------- Run | Yrd Mat Mat Machines Accessed 18 | . 10 8 Terminals 13 | . 7 6 Fabricators . | . . . Repair Stations 1 | . 1 . Recycling Units 4 | . 2 2 Scanalyzers . | . . . Garrison Access . | . . . Total Hacks 49 | . 26 23 Successful 25 | . 17 8 Failed 24 | . 9 15 Catastrophic 6 | . 2 4 Database Lockouts . | . . . Manual 42 | . 22 20 Terminals 40 | . 20 20 Fabricators . | . . . Repair Stations 1 | . 1 . Recycling Units 8 | . 5 3 Scanalyzers . | . . . Garrison Access . | . . . Terminal Hacks 5 | . 2 3 Branch Access Points 1 | . 1 . Terminal Index 2 | . 1 1 Alert Level 1 | . . 1 Unreport Threat 1 | . . 1 Fabricator Hacks . | . . . Repair Station Hacks . | . . . Recycling Unit Hacks 5 | . 3 2 Report Inventory 4 | . 2 2 Retrieve Components 1 | . 1 . Scanalyzer . | . . . Garrison Access Hacks . | . . . Unauthorized Hacks 15 | . 12 3 Terminals 13 | . 10 3 Track 2 | . 2 . Assimilate 3 | . 2 1 Botnet 6 | . 5 1 Operators 2 | . 1 1 Fabricators . | . . . Repair Stations 1 | . 1 . Mechanics 1 | . 1 . Recycling Units 1 | . 1 . Recyclers 1 | . 1 . Scanalyzers . | . . . Garrison Access . | . . . Data Cores Recovered . | . . . Used . | . . . Hacking Detections 16 | . 9 7 Full Trace Events 4 | . 2 2 Feedback Events . | . . . Feedback Blocked . | . . . Robot Schematics Acquired . | . . . Robots Built . | . . . Authchips . | . . . Time . | . . . Total Robot Build Rating . | . . . Part Schematics Acquired . | . . . Parts Built . | . . . Authchips . | . . . Time . | . . . Total Part Build Rating . | . . . Parts Repaired . | . . . Time . | . . . Parts Recycled . | . . . Recycled Matter . | . . . Retrieved Matter . | . . . Retrieved Components 1 | . 1 . Parts Scanalyzed . | . . . Part Schematics Acquired . | . . . Parts Damaged . | . . . Bothacking | -11 -10 -9 ------------ Run | Yrd Mat Mat Used RIF Installer . | . . . Robots Hacked . | . . . Non-combat . | . . . Combat . | . . . Robot Hacks Applied . | . . . Relay Couplers Released . | . . . Fabnet Peak Effective % . | . . . Robots Rewired . | . . . Allies Hacked . | . . . Hacks Repelled . | . . . Allies | -11 -10 -9 -------- Run | Yrd Mat Mat Total Allies . | . . . Largest Group . | . . . Highest-Rated Group . | . . . Highest-Rated Ally . | . . . Total Orders . | . . . Ally Attacks . | . . . Total Damage . | . . . Kills . | . . . Allies Corrupted . | . . . Allies Melted . | . . . Intel | -11 -10 -9 ------- Run | Yrd Mat Mat Robot Analysis Total . | . . . Derelict Logs Recovered . | . . . Drone Launches . | . . . Drone Recoveries . | . . . Exploration | -11 -10 -9 ------------- Run | Yrd Mat Mat Turns Passed 1664 | 61 877 726 Spaces Moved 1760 | 53 826 881 Core 39 | 8 14 17 Treads . | . . . Legs . | . . . Wheels 510 | 45 465 . Hover 159 | . 159 . Flight 1052 | . 188 864 Fastest Speed 37 | 50 37 37 Average Speed 57 | 92 76 38 Slowest Speed 250 | 100 250 100 Overloaded Moves . | . . . Propulsion Burnouts . | . . . Robots Hopped 5 | . . 5 Cave-ins Triggered . | . . . Exploration Rate (%) 51 | 4 97 53 Regions Visited 2 Branch Regions . Pre-discovered Areas . | . . . Known Exits Taken . | . . . Unknown Exits Taken 2 | 1 1 . Scrap Searched . | . . . Spaces Dug . | . . . Terrain Destroyed 59 | . 10 49 Melee . | . . . Projectile . | . . . AOE 59 | . 10 49 Terrain Rammed . | . . . Walls Destroyed . | . . . Machines Disabled . | . . . Actions | -11 -10 -9 --------- Run | Yrd Mat Mat Total 2235 | 61 1000 1174 Wait 223 | . 53 170 Move 1748 | 52 825 871 Hop 5 | . . 5 Pick Up 35 | 2 17 16 Fast Attach 28 | 6 9 13 Attach 23 | . 9 14 Detach 11 | . 7 4 Swap 9 | 1 7 1 Drop 26 | . 14 12 Fire 127 | . 59 68 Melee . | . . . Ram . | . . . Kick . | . . . Crush . | . . . Escape Stasis . | . . . Rewire . | . . . Trap . | . . . Miscellaneous . | . . . Route ------- -11/Scrapyard -10/Materials (discovered 5 exits: *Mat x3 / *Min x2) -9/Materials (discovered 3 exits: [*Mat] / [*Min] / [*Sto]) History --------- Turn | Location | Event 2 | -11/Scrapyard | Met Revision 17 18 | -11/Scrapyard | Discovered new exit (range 16) 62 | -11/Scrapyard | Entered Materials 317 | -10/Materials | Build established: Mutant 367 | -10/Materials | Discovered new exit (range 14) 519 | -10/Materials | Lost 4 parts (1p2n1w) 549 | -10/Materials | Discovered new exit (range 7) 674 | -10/Materials | Core integrity fell below 50% 729 | -10/Materials | Discovered new exit (range 8) 759 | -10/Materials | Identified exit to Mines 833 | -10/Materials | Discovered new exit (range 16) 933 | -10/Materials | Discovered new exit (range 12) 939 | -10/Materials | Entered another Materials area 939 | -9/Materials | Evolved 2 slots: Utility x2 1445 | -9/Materials | Discovered new exit (range 5) 1486 | -9/Materials | Discovered new exit (range 3) 1633 | -9/Materials | Discovered new exit (range 13) 1665 | -9/Materials | Self-destructed Last Messages --------------- 01656_ U-05 Engineer builds a Wall. 01656_ U-05 Engineer lays Concrete. 01656_ K-01 Serf collects debris. 01657_ Lgt. Ion Engine destroyed. 01658_ U-05 Engineer lays Concrete. 01659_ K-01 Serf collects debris. 01659_ U-05 Engineer lays Concrete. 01660_ K-01 Serf collects debris. 01661_ U-05 Engineer lays Concrete. 01661_ Imp. Flight Unit destroyed. 01662_ U-05 Engineer lays Concrete. 01662_ K-01 Serf collects debris. 01662_ U-05 Engineer builds a Wall. 01663_ U-05 Engineer lays Concrete. 01664_ Acquired Corrupted Ion Engine. 01664_ Integrated Corrupted Ion Engine (+1). 01664_ U-05 Engineer builds a Wall. 01664_ K-01 Serf collects debris. 01664_ EM Shotgun destroyed. 01665_ Critical hit (Burn: +37). Map ----- +----------------------------------------------------+ | ?????????????????????????????????????????????????? | | ?????????????????????????????????????????????????? | | ?????????????????????????????????????????????????? | | ?????????????????????????????????????????????????? | | ?????????????????????????????????????????????????? | | ?????????????????????????????????????????????????? | | ?????????????????????????????????????????????????? | | ?????????????????????????????????????????????????? | | ?????????????????????????????????????????????????? | | ?????????????????????????????????????????????????? | | ?????????????????????????????????????????????????? | | ???????????????????????????????????????????##????? | | ????????????????????????????????????####### ##???? | | ????????????????????????????????????# #???? | | ????????????????????????????????????# * " #???? | | ????????????????#????????????######## % "S #???? | | ????????????????# ???????????# # ="" #???? | | ????????????????#! ??????????# # #???? | | ????????????????# ?????????# """ # """ #???? | | ????????????????# R??????# """ # """ #???? | | ???????????"""??# """?????# # """ #???? | | ??????????? # ##### != # ##### | | ???????????#+ ##########+######+###### | | ?????????? %[ * =%kY u = % ### "" | | ?????????? = !! % **=%= ^^ + "T | | ?????????? k u *k=u%=@*%*! ^^ ### | | ???????????#/##### ###[kY #### #?# | | ??????????? ] ### #######??# #?# | | ??????????? ????# #????????# #?# | | ????????????""" ??????# #????????# #?# "" | | ?????????????"????????# #????????# #?# "" | | ??????????????????????# #????????# #?# "" | | ??????????????????????# #????????# ### | | ??????????????????????# #????????# # ##### | | ?????????????????????? ?????????# # | | ?????????????????????? ?????????# # < | | ?????????????????????# < ?????????# # | | ?????????????????????# ?????????# # ##### | | ?????????????????????# ?######### #######???? | | ?????????????????????## ?# # ########### | | ??????????????????????? ?# " # # # | | ???????????????????????????# """ # # ! | | ???????????????????????????# """ #= # * [ # | | ???????????????????????????# """ %#= #[% # | | ???????????????????????????# "" =%+[% + # | | ???????????????????????????# """ *#%% # # | | ???????????????????????????# "" # # # | | ???????????????????????????# "" # # # | | ???????????????????????????# " [# ########### | | ???????????????????????????# # # | +----------------------------------------------------+ Best States ------------- Heat Dissipation 35 Energy Generation 14 Energy Capacity 280 Matter Stores 300 Matter Capacity 300 Sight Range 16 Terrain Scan Density 10 Additional Mass Support 6 Evasion (%) 62 Targeting Accuracy 6 Item Schematics ----------------- None Robot Schematics ------------------ None Fabricated ------------ Nothing Alien Tech Used ----------------- None Achievements -------------- None Challenges ------------ None Game ------ Seed XenonInertialLink Manual? 0 Play Time 00:48:27 Cumulative 20.4 hours Start 2024.04.19 @ 19:36:51 End 2024.04.19 @ 20:25:07 Sessions 1 Manual Loads 0 Difficulty Rogue Special Mode None Game No. 17 Rogue 17 Adventurer 0 Explorer 0 Win Type - Total 0 Types 0/0/0/0/0/0/0/0/0 Lore% 13 Gallery% 19 Achievement% 18 Wizard Run 0 Options --------- Layout 0 ASCII 1 Keyboard 1 Movement Vi Keybinds 0 Fullscreen 1 Font 20/SmallcapsGlow Map View 66x50 Zoom Use 0% Tactical HUD 1 Map Filters NONE Filters NONE Steam 1 RUN: 176bec33-dff5-47f2-82e9-59be68dde0e9